fUST/lending_fUST_20250822
["ID","MTS","AMOUNT","RATE_DAILY","PERIOD"]
[380567542,1755809193472,432.28827654,0.00019178,2]
[380567543,1755809193497,564.60172346,0.00019178,2]
[380567544,1755809193892,996.89,0.00019452,2]
[380567545,1755809196287,1397.71,0.00019178,2]
[380567546,1755809196527,1397.71,0.00019452,2]
[380567547,1755809197432,157.0,7.5e-07,2]
[380567548,1755809198487,157.0,7.5e-07,2]
[380567549,1755809198877,317.3,0.00019178,2]
[380567550,1755809199478,11.78827654,0.00019178,2]
[380567551,1755809199509,468.21172346,0.00019178,2]
[380567552,1755809199555,157.0,7.5e-07,2]
[380567553,1755809199740,480.0,0.00019452,2]
[380567554,1755809200846,157.0,7.5e-07,2]
[380567555,1755809201229,569.21,0.00019178,2]
[380567556,1755809201493,569.21,0.00019452,2]
[380567557,1755809201702,157.0,7.5e-07,2]
[380567558,1755809202739,157.0,7.5e-07,2]
[380567559,1755809203050,203.44221309,0.00019077,2]
[380567560,1755809203870,157.0,7.5e-07,2]
[380567561,1755809204914,157.0,7.5e-07,2]
[380567562,1755809206851,1025.4,0.00019178,2]
[380567563,1755809207100,742.52606345,0.00019452,2]
[380567564,1755809207126,282.87393655,0.00019452,2]
[380567565,1755809207181,4717.12606345,0.00019452,2]
[380567566,1755809207205,282.87393655,0.00019452,2]
[380567567,1755809211685,574.81,0.00019178,2]
[380567568,1755809211943,574.81,0.00019452,2]
[380567569,1755809215934,2527.71,0.00019178,2]
[380567570,1755809217069,1039.79606345,0.00019452,2]
[380567571,1755809217094,1487.91393655,0.00019452,2]
[380567572,1755809219127,510.48,0.00019178,2]
[380567573,1755809219420,510.48,0.00019452,2]
[380567574,1755809220966,480.0,0.00019178,2]
[380567575,1755809221213,480.0,0.00019452,2]
[380567576,1755809222671,1531.12606345,0.00019452,2]
[380567577,1755809222695,3468.87393655,0.00019452,2]
[380567579,1755809228870,480.0,0.00019178,2]
[380567580,1755809229099,398.46,0.00019178,2]
[380567581,1755809229176,455.69,0.00019452,2]
[380567583,1755809231727,196.97606345,0.00019178,2]
[380567584,1755809231750,283.02393655,0.00019178,2]
[380567585,1755809232001,480.0,0.00019452,2]
[380567586,1755809233057,480.0,0.00019178,2]
[380567587,1755809234220,480.0,0.00019178,2]
[380567588,1755809234463,480.0,0.00019452,2]
[380567589,1755809238392,2796.97606345,0.00019452,2]
[380567590,1755809238416,2203.02393655,0.00019452,2]
[380567591,1755809242064,480.0,0.00019178,2]
[380567592,1755809242367,623.17,0.00019452,2]
[380567593,1755809242400,741.71,0.00019178,2]
[380567594,1755809242546,480.0,0.00019178,2]
[380567595,1755809242640,472.09606345,0.00019452,2]
[380567596,1755809242664,269.61393655,0.00019452,2]
[380567597,1755809242774,298.46,0.00019178,2]
[380567598,1755809242823,480.0,0.00019452,2]
[380567599,1755809243707,1587.91,0.00019178,2]
[380567600,1755809243972,1587.91,0.00019452,2]
[380567601,1755809244829,544.7,0.00019178,2]
[380567602,1755809245107,231.40606345,0.00019452,2]
[380567603,1755809245131,313.29393655,0.00019452,2]
[380567604,1755809247488,480.0,0.00019178,2]
[380567605,1755809247742,480.0,0.00019452,2]
[380567606,1755809248107,-480.0,0.00019726,2]
[380567607,1755809248126,-480.0,0.00019726,2]
[380567608,1755809248146,-544.79,0.00019726,2]
[380567609,1755809248165,-480.0,0.00019726,2]
[380567610,1755809248185,-480.0,0.00019726,2]
[380567611,1755809248206,-480.0,0.00019726,2]
[380567612,1755809248226,-480.0,0.00019726,2]
[380567613,1755809248247,-309.54844688,0.00019726,2]
[380567614,1755809248273,-170.45155312,0.00019726,2]
[380567615,1755809248293,-308.90839019,0.00019726,2]
[380567616,1755809248314,-480.0,0.00019726,2]
[380567617,1755809248333,-308.23,0.00019726,2]
[380567618,1755809248354,-480.0,0.00019726,2]
[380567619,1755809248373,-480.0,0.00019726,2]
[380567620,1755809248393,-480.0,0.00019726,2]
[380567621,1755809248416,-480.0,0.00019726,2]
[380567622,1755809248438,-480.0,0.00019726,2]
[380567623,1755809248457,-480.0,0.00019726,2]
[380567624,1755809248477,-489.99,0.00019726,2]
[380567625,1755809248497,-480.0,0.00019726,2]
[380567626,1755809248518,-1057.25,0.00019726,2]
[380567627,1755809248539,-480.0,0.00019726,2]
[380567628,1755809248559,-480.0,0.00019726,2]
[380567629,1755809248580,-3304.69,0.00019726,2]
[380567630,1755809248599,-480.0,0.00019726,2]
[380567631,1755809248619,-480.0,0.00019726,2]
[380567632,1755809248640,-480.0,0.00019726,2]
[380567633,1755809248660,-480.0,0.00019726,2]
[380567634,1755809248680,-1013.53,0.00019726,2]
[380567635,1755809248701,-3665.91,0.00019726,2]
[380567636,1755809248720,-480.0,0.00019726,2]
[380567637,1755809248740,-480.0,0.00019726,2]
[380567638,1755809248762,-615.31,0.00019726,2]
[380567639,1755809248781,-480.0,0.00019726,2]
[380567640,1755809248803,-480.0,0.00019726,2]
[380567641,1755809248832,-480.0,0.00019726,2]
[380567642,1755809248854,-738.75,0.00019726,2]
[380567643,1755809248879,-1618.64,0.00019726,2]
[380567644,1755809248904,-1411.74,0.00019726,2]
[380567645,1755809248928,-1210.73,0.00019726,2]
[380567646,1755809248950,-480.0,0.00019726,2]
[380567647,1755809248969,-480.0,0.00019726,2]
[380567648,1755809248989,-480.0,0.00019726,2]
[380567649,1755809249009,-480.0,0.00019726,2]
[380567650,1755809249031,-877.07,0.00019726,2]
[380567651,1755809249051,-480.0,0.00019726,2]
[380567652,1755809249072,-2347.93,0.00019726,2]
[380567653,1755809249093,-786.74,0.00019726,2]
[380567654,1755809249114,-543.44,0.00019726,2]
[380567655,1755809249136,-480.0,0.00019726,2]
[380567656,1755809249155,-480.0,0.00019726,2]
[380567657,1755809249176,-1010.52,0.00019726,2]
[380567658,1755809249196,-480.0,0.00019726,2]
[380567659,1755809249217,-480.0,0.00019726,2]
[380567660,1755809249239,-480.0,0.00019726,2]
[380567661,1755809249259,-480.0,0.00019726,2]
[380567662,1755809249279,-589.28905032,0.00019726,2]
[380567663,1755809249300,-480.0,0.00019726,2]
[380567664,1755809249320,-480.0,0.00019726,2]
[380567665,1755809249340,-480.0,0.00019726,2]
[380567666,1755809249359,-996.89,0.00019726,2]
[380567667,1755809249379,-1397.71,0.00019726,2]
[380567668,1755809249398,-480.0,0.00019726,2]
[380567669,1755809249418,-569.21,0.00019726,2]
[380567670,1755809249440,-1025.4,0.00019726,2]
[380567671,1755809249460,-574.81,0.00019726,2]
[380567672,1755809249481,-2527.71,0.00019726,2]
[380567673,1755809249500,-510.48,0.00019726,2]
[380567674,1755809249521,-480.0,0.00019726,2]
[380567675,1755809249542,-480.0,0.00019726,2]
[380567676,1755809249562,-480.0,0.00019726,2]
[380567677,1755809249583,-741.71,0.00019726,2]
[380567678,1755809249602,-480.0,0.00019726,2]
[380567679,1755809249623,-1587.91,0.00019726,2]
[380567680,1755809249643,-544.7,0.00019726,2]
[380567681,1755809249663,-151.0,0.00019819,2]
[380567682,1755809249684,-7823.25610495,0.000199,2]
[380567683,1755809249703,-500.0,0.00019962,2]
[380567684,1755809249722,-273.35986992,0.00019962,2]
[380567685,1755809249742,-500.0,0.00019962,2]
[380567686,1755809249764,-480.0,0.0002,2]
[380567687,1755809249783,-480.0,0.0002,2]
[380567688,1755809249804,-480.0,0.0002,2]
[380567689,1755809249824,-480.0,0.0002,2]
[380567690,1755809249844,-480.0,0.0002,2]
[380567691,1755809249867,-480.0,0.0002,2]
[380567692,1755809249887,-480.0,0.0002,2]
[380567693,1755809249906,-480.0,0.0002,2]
[380567694,1755809249926,-480.0,0.0002,2]
[380567695,1755809249945,-480.0,0.0002,2]
[380567696,1755809249965,-480.0,0.0002,2]
[380567697,1755809249985,-480.0,0.0002,2]
[380567698,1755809250004,-547.69164622,0.0002,2]
[380567699,1755809250024,-480.0,0.0002,2]
[380567700,1755809250044,-489.99,0.0002,2]
[380567701,1755809250064,-480.0,0.0002,2]
[380567702,1755809250084,-965.45500881,0.0002,2]
[380567703,1755809250309,480.0,0.00019178,2]
[380567704,1755809250353,480.0,0.00019452,2]
[380567705,1755809254156,2766.70606345,0.00019452,2]
[380567706,1755809254181,2233.29393655,0.00019452,2]
[380567707,1755809254310,480.0,0.00019178,2]
[380567708,1755809254562,480.0,0.00019452,2]
[380567709,1755809254602,480.0,0.00019178,2]
[380567710,1755809254864,480.0,0.00019452,2]
[380567711,1755809257831,490.65321019,0.00019178,2]
[380567712,1755809261104,356.05285326,0.00019178,2]
[380567713,1755809261128,901.78714674,0.00019178,2]
[380567714,1755809261375,1257.84,0.00019452,2]
[380567715,1755809262045,1802.73699337,0.00019452,2]
[380567716,1755809263826,1037.63585989,0.00019178,2]
[380567717,1755809263852,3091.08414011,0.00019178,2]
[380567718,1755809264077,1908.91585989,0.00019452,2]
[380567719,1755809264105,2219.80414011,0.00019452,2]
[380567720,1755809269930,2780.19585989,0.00019452,2]
[380567721,1755809269953,2219.80414011,0.00019452,2]
[380567722,1755809272935,2780.19585989,0.00019078,2]
[380567723,1755809272957,4858.7676022,0.00019078,2]
[380567724,1755809272985,141.2323978,0.00019178,2]
[380567725,1755809273006,338.7676022,0.00019178,2]
[380567726,1755809273215,480.0,0.00019452,2]
[380567727,1755809275114,480.0,0.00019178,2]
[380567728,1755809275470,480.0,0.00019452,2]
[380567729,1755809276647,480.0,0.00019178,2]
[380567730,1755809277003,480.0,0.00019452,2]
[380567731,1755809279485,1686.08,0.00019178,2]
[380567732,1755809279521,480.0,0.00019178,2]
[380567733,1755809279771,95.1523978,0.00019452,2]
[380567734,1755809279793,384.8476022,0.00019452,2]
[380567735,1755809280064,1686.08,0.00019452,2]
[380567736,1755809280163,152.12,0.00019178,2]
[380567737,1755809285540,769.53,0.00019178,2]
[380567738,1755809285794,769.53,0.00019452,2]
[380567739,1755809286371,1237.8923978,0.00019452,2]
[380567740,1755809286395,3762.1076022,0.00019452,2]
[380567741,1755809286422,585.17,0.00019178,2]
[380567742,1755809286661,585.17,0.00019452,2]
[380567743,1755809289184,67.5523978,0.00019178,2]
[380567744,1755809289206,412.4476022,0.00019178,2]
[380567745,1755809289433,480.0,0.00019452,2]
[380567746,1755809294555,910.29,0.00019178,2]
[380567747,1755809294826,910.29,0.00019452,2]
[380567748,1755809300693,480.0,0.00019178,2]
[380567749,1755809300982,480.0,0.00019452,2]
[380567750,1755809302757,1326.9723978,0.00019452,2]
[380567751,1755809302783,3673.0276022,0.00019452,2]
[380567752,1755809311883,480.0,0.00019178,2]
[380567753,1755809312239,480.0,0.00019452,2]
[380567754,1755809316388,366.9723978,0.00019178,2]
[380567755,1755809316561,113.0276022,0.00019178,2]
[380567756,1755809316627,261.65,0.00019452,2]
[380567757,1755809317866,4625.3223978,0.00019452,2]
[380567758,1755809317888,374.6776022,0.00019452,2]
[380567759,1755809318792,302.45563732,0.00019355,2]
[380567760,1755809319178,3794.13,0.00019178,2]
[380567761,1755809319446,528.73676048,0.00019452,2]
[380567762,1755809319469,3265.39323952,0.00019452,2]
[380567763,1755809323394,480.0,0.00019178,2]
[380567764,1755809323651,480.0,0.00019452,2]
[380567765,1755809327677,480.0,0.00019178,2]
[380567766,1755809327941,294.60676048,0.00019452,2]
[380567767,1755809327964,185.39323952,0.00019452,2]
[380567768,1755809328717,169.91,0.00019178,2]
[380567769,1755809332742,480.0,0.00019178,2]
[380567770,1755809332979,480.0,0.00019452,2]
[380567771,1755809333054,3684.69676048,0.00019452,2]
[380567772,1755809333077,1315.30323952,0.00019452,2]
[380567774,1755809339865,1160.77,0.00019178,2]
[380567775,1755809340155,1160.77,0.00019452,2]
[380567776,1755809340335,1363.15676048,0.00019178,2]
[380567777,1755809340359,1076.61323952,0.00019178,2]
[380567778,1755809340585,2439.77,0.00019452,2]
[380567779,1755809347607,192.29,0.00019178,2]
[380567780,1755809348127,480.0,0.00019178,2]
[380567781,1755809348359,480.0,0.00019452,2]
[380567782,1755809348699,331.32676048,0.00019452,2]
[380567783,1755809348723,4668.67323952,0.00019452,2]
[380567784,1755809350749,331.32676048,0.00019178,2]
[380567785,1755809350920,148.67323952,0.00019178,2]
[380567786,1755809351011,480.0,0.00019452,2]
[380567787,1755809353196,480.0,0.00019178,2]
[380567788,1755809353485,480.0,0.00019452,2]
[380567789,1755809359761,480.0,0.00019178,2]
[380567790,1755809360026,480.0,0.00019452,2]
[380567791,1755809365218,2451.32676048,0.00019452,2]
[380567792,1755809365243,2548.67323952,0.00019452,2]
[380567793,1755809367258,480.0,0.00019178,2]
[380567794,1755809367503,480.0,0.00019452,2]
[380567795,1755809369513,203.44221309,0.00019078,2]
[380567796,1755809371820,396.88,0.00019178,2]
[380567797,1755809381003,891.00454739,0.00019452,2]
[380567798,1755809381026,4108.99545261,0.00019452,2]
[380567799,1755809381807,480.0,0.00019178,2]
[380567800,1755809382075,411.00454739,0.00019452,2]
[380567801,1755809382099,68.99545261,0.00019452,2]
[380567802,1755809382316,480.0,0.00019178,2]
[380567803,1755809384344,480.0,0.00019178,2]
[380567804,1755809384527,480.0,0.00019178,2]
[380567805,1755809384583,356.39,0.00019452,2]
[380567806,1755809384711,480.0,0.00019178,2]
[380567807,1755809384871,480.0,0.00019452,2]
[380567808,1755809384949,480.0,0.00019452,2]
[380567809,1755809386594,480.0,0.00019178,2]
[380567810,1755809386884,480.0,0.00019452,2]
[380567811,1755809387505,480.0,0.00019178,2]
[380567812,1755809387769,254.61454739,0.00019452,2]
[380567813,1755809387798,225.38545261,0.00019452,2]
[380567814,1755809389451,480.0,0.00019178,2]
[380567815,1755809389700,480.0,0.00019452,2]
[380567816,1755809390555,480.0,0.00019178,2]
[380567817,1755809390809,550.46400709,0.00019452,2]
[380567818,1755809395317,480.0,0.00019178,2]
[380567819,1755809395839,578.03,0.00019452,2]
[380567820,1755809396158,480.0,0.00019178,2]
[380567821,1755809396278,1246.1205403,0.00019452,2]
[380567822,1755809396304,3753.8794597,0.00019452,2]
[380567823,1755809396411,480.0,0.00019452,2]
[380567824,1755809397563,480.0,0.00019178,2]
[380567825,1755809405677,286.1205403,0.00019178,2]
[380567826,1755809405700,193.8794597,0.00019178,2]
[380567827,1755809407845,566.38,0.00019178,2]
[380567828,1755809408094,566.38,0.00019452,2]
[380567829,1755809412761,1315.98,0.00019178,2]
[380567830,1755809413004,1315.98,0.00019452,2]
[380567831,1755809413479,1041.4005403,0.00019452,2]
[380567855,1755809432551,-419.25,0.00019178,2]
[380567856,1755809432561,-480.0,0.00019178,2]
[380567857,1755809432570,-974.69,0.00019178,2]
[380567858,1755809432579,-480.0,0.00019178,2]
[380567859,1755809432588,-485.99,0.00019178,2]
[380567860,1755809432597,-3958.5994597,0.00019452,2]
[380567861,1755809432606,-165.12,0.00019452,2]
[380567862,1755809432615,-675.95072069,0.00019452,2]
[380567863,1755809432626,-298.73927931,0.00019452,2]
[380567864,1755809432635,-588.04,0.00019452,2]
[380567865,1755809432645,-485.99,0.00019452,2]
[380567866,1755809432655,-302.45563732,0.00019548,2]
[380567867,1755809432663,-1200.0,0.00019724,2]
[380567868,1755809432672,-300.0,0.00019724,2]
[380567869,1755809432681,-590.26,0.00019725,2]
[380567870,1755809432690,-480.0,0.00019725,2]
[380567871,1755809432699,-480.0,0.00019725,2]
[380567872,1755809432708,-480.0,0.00019725,2]
[380567873,1755809432719,-1052.62,0.00019725,2]
[380567874,1755809432728,-480.0,0.00019726,2]
[380567875,1755809432737,-480.0,0.00019726,2]
[380567876,1755809432746,-480.0,0.00019726,2]
[380567877,1755809432755,-1257.84,0.00019726,2]
[380567878,1755809432764,-4128.72,0.00019726,2]
[380567879,1755809432773,-480.0,0.00019726,2]
[380567880,1755809432782,-480.0,0.00019726,2]
[380567881,1755809432791,-480.0,0.00019726,2]
[380567882,1755809432800,-480.0,0.00019726,2]
[380567883,1755809432809,-1686.08,0.00019726,2]
[380567884,1755809432820,-769.53,0.00019726,2]
[380567885,1755809432839,-585.17,0.00019726,2]
[380567886,1755809432849,-480.0,0.00019726,2]
[380567887,1755809432857,-910.29,0.00019726,2]
[380567888,1755809432866,-480.0,0.00019726,2]
[380567889,1755809432875,-480.0,0.00019726,2]
[380567890,1755809432885,-3794.13,0.00019726,2]
[380567891,1755809432894,-480.0,0.00019726,2]
[380567892,1755809432903,-480.0,0.00019726,2]
[380567893,1755809432912,-480.0,0.00019726,2]
[380567894,1755809432921,-611.28396219,0.00019726,2]
[380567895,1755809432932,-395.80143674,0.00019726,2]
[380567896,1755809432946,-153.68460107,0.00019726,2]
[380567897,1755809432955,-313.41469892,0.00019726,2]
[380567924,1755809437870,-2126.35530108,0.00019726,2]
[380567926,1755809437881,-480.0,0.00019726,2]
[380567928,1755809437891,-480.0,0.00019726,2]
[380567930,1755809437900,-480.0,0.00019726,2]
[380567932,1755809437909,-480.0,0.00019726,2]
[380567934,1755809437919,-480.0,0.00019726,2]
[380567935,1755809437928,-480.0,0.00019726,2]
[380567937,1755809437937,-480.0,0.00019726,2]
[380567938,1755809437946,-480.0,0.00019726,2]
[380567940,1755809437956,-480.0,0.00019726,2]
[380567942,1755809437965,-480.0,0.00019726,2]
[380567944,1755809437974,-480.0,0.00019726,2]
[380567946,1755809437983,-566.38,0.00019726,2]
[380567948,1755809437992,-1315.98,0.00019726,2]
[380567950,1755809438001,-974.69,0.00019726,2]
[380567951,1755809438010,-485.99,0.00019726,2]
[380567952,1755809438020,-302.45563732,0.00019742,2]
[380567953,1755809438030,-7854.04594251,0.000199,2]
[380567954,1755809438039,-453.68345598,0.00019935,4]
[380567955,1755809438050,-480.0,0.00019999,2]
[380567956,1755809438059,-480.0,0.00019999,2]
[380567957,1755809438068,-480.0,0.00019999,2]
[380567958,1755809438077,-1052.62,0.00019999,2]
[380567959,1755809438087,-480.0,0.0002,2]
[380567960,1755809438096,-480.0,0.0002,2]
[380567961,1755809438105,-480.0,0.0002,2]
[380567962,1755809438114,-480.0,0.0002,2]
[380567963,1755809438123,-480.0,0.0002,2]
[380567964,1755809438132,-480.0,0.0002,2]
[380567965,1755809438142,-615.31,0.0002,2]
[380567966,1755809438151,-480.0,0.0002,2]
[380567967,1755809438160,-480.0,0.0002,2]
[380567968,1755809438169,-1411.74,0.0002,2]
[380567969,1755809438179,-480.0,0.0002,2]
[380567970,1755809438188,-480.0,0.0002,2]
[380567971,1755809438197,-786.74,0.0002,2]
[380567972,1755809438206,-480.0,0.0002,2]
[380567973,1755809438215,-996.89,0.0002,2]
[380567974,1755809438225,-480.0,0.0002,2]
[380567975,1755809438235,-574.81,0.0002,2]
[380567976,1755809438244,-2527.71,0.0002,2]
[380567977,1755809438253,-480.0,0.0002,2]
[380567978,1755809438263,-480.0,0.0002,2]
[380567979,1755809438272,-480.0,0.0002,2]
[380567980,1755809438283,-741.71,0.0002,2]
[380567981,1755809438292,-480.0,0.0002,2]
[380567982,1755809438302,-1587.91,0.0002,2]
[380567983,1755809438311,-544.7,0.0002,2]
[380567984,1755809438320,-480.0,0.0002,2]
[380567985,1755809438330,-480.0,0.0002,2]
[380567986,1755809438339,-480.0,0.0002,2]
[380567987,1755809438348,-1257.84,0.0002,2]
[380567988,1755809438357,-4128.72,0.0002,2]
[380567989,1755809438366,-512.75,0.0002,2]
[380567990,1755809438376,-480.0,0.0002,2]
[380567991,1755809438385,-480.0,0.0002,2]
[380567992,1755809438395,-480.0,0.0002,2]
[380567993,1755809438404,-1686.08,0.0002,2]
[380567994,1755809438414,-769.53,0.0002,2]
[380567995,1755809438424,-585.17,0.0002,2]
[380567996,1755809438433,-480.0,0.0002,2]
[380567997,1755809438442,-910.29,0.0002,2]
[380567998,1755809438451,-480.0,0.0002,2]
[380567999,1755809438460,-3794.13,0.0002,2]
[380568000,1755809438469,-480.0,0.0002,2]
[380568001,1755809438478,-480.0,0.0002,2]
[380568002,1755809438488,-480.0,0.0002,2]
[380568003,1755809438497,-1160.77,0.0002,2]
[380568004,1755809438506,-2439.77,0.0002,2]
[380568005,1755809438515,-399.44652741,0.0002,2]
[380568006,1755809438525,-480.0,0.0002,2]
[380568007,1755809438534,-480.0,0.0002,2]
[380568008,1755809438543,-480.0,0.0002,2]
[380568009,1755809438552,-480.0,0.0002,2]
[380568010,1755809438562,-480.0,0.0002,2]
[380568011,1755809438572,-480.0,0.0002,2]
[380568012,1755809438581,-480.0,0.0002,2]
[380568013,1755809438589,-480.0,0.0002,2]
[380568014,1755809438599,-480.0,0.0002,2]
[380568015,1755809438608,-566.38,0.0002,2]
[380568016,1755809438616,-1315.98,0.0002,2]
[380568017,1755809438625,-974.69,0.0002,2]
[380568018,1755809438634,-485.99,0.0002,2]
[380568019,1755809438643,-500.0,0.00020047,2]
[380568020,1755809438652,-453.68345598,0.00020129,4]
[380568021,1755809438661,-12690.45384448,0.00020136,2]
[380568022,1755809438670,-160.0,0.00020197,2]
[380568023,1755809438678,-160.0,0.00020197,2]
[380568024,1755809438688,-232.28399145,0.00020197,2]
[380568025,1755809438697,-160.0,0.00020197,2]
[380568026,1755809438707,-376.00439007,0.00020197,2]
[380568027,1755809438718,-215.86710461,0.00020197,2]
[380568028,1755809438727,-216.95272161,0.00020197,2]
[380568029,1755809438736,-160.0,0.00020197,2]
[380568030,1755809438745,-844.19128999,0.00020197,2]
[380568031,1755809438754,-160.0,0.00020197,2]
[380568032,1755809438763,-160.0,0.00020197,2]
[380568033,1755809438772,-528.88070896,0.00020197,2]
[380568034,1755809438781,-151.0,0.00020261,2]
[380568035,1755809438790,-500.0,0.00020273,2]
[380568036,1755809438799,-480.0,0.00020273,2]
[380568037,1755809438808,-480.0,0.00020273,2]
[380568038,1755809438817,-480.0,0.00020273,2]
[380568039,1755809438826,-480.0,0.00020273,2]
[380568040,1755809438835,-480.0,0.00020273,2]
[380568041,1755809438843,-369.98598002,0.00020273,2]
[380568042,1755809438852,-480.0,0.00020273,2]
[380568043,1755809438860,-480.0,0.00020273,2]
[380568044,1755809438870,-489.99,0.00020273,2]
[380568045,1755809438882,-480.0,0.00020273,2]
[380568046,1755809438893,-480.0,0.00020273,2]
[380568047,1755809438902,-480.0,0.00020273,2]
[380568048,1755809438911,-480.0,0.00020273,2]
[380568049,1755809438920,-480.0,0.00020273,2]
[380568050,1755809438930,-480.0,0.00020273,2]
[380568051,1755809438940,-480.0,0.00020273,2]
[380568052,1755809438950,-615.31,0.00020273,2]
[380568053,1755809438959,-349.86,0.00020273,2]
[380568054,1755809438971,-480.0,0.00020273,2]
[380568055,1755809438982,-1411.74,0.00020273,2]
[380568056,1755809438993,-480.0,0.00020273,2]
[380568057,1755809439003,-480.0,0.00020273,2]
[380568058,1755809439014,-786.74,0.00020273,2]
[380568059,1755809439025,-480.0,0.00020273,2]
[380568060,1755809439035,-996.89,0.00020273,2]
[380568061,1755809439046,-480.0,0.00020273,2]
[380568062,1755809439055,-574.81,0.00020273,2]
[380568063,1755809439067,-2527.71,0.00020273,2]
[380568064,1755809439079,-480.0,0.00020273,2]
[380568065,1755809439089,-480.0,0.00020273,2]
[380568066,1755809439101,-480.0,0.00020273,2]
[380568067,1755809439112,-741.71,0.00020273,2]
[380568068,1755809439123,-480.0,0.00020273,2]
[380568069,1755809439134,-1587.91,0.00020273,2]
[380568070,1755809439145,-544.7,0.00020273,2]
[380568071,1755809439157,-480.0,0.00020273,2]
[380568072,1755809439168,-480.0,0.00020273,2]
[380568073,1755809439179,-480.0,0.00020273,2]
[380568074,1755809439190,-1257.84,0.00020273,2]
[380568075,1755809439201,-4128.72,0.00020273,2]
[380568076,1755809439213,-480.0,0.00020273,2]
[380568077,1755809439224,-480.0,0.00020273,2]
[380568078,1755809439236,-480.0,0.00020273,2]
[380568079,1755809439246,-1686.08,0.00020273,2]
[380568081,1755809439257,-769.53,0.00020273,2]
[380568082,1755809439269,-585.17,0.00020273,2]
[380568083,1755809439279,-480.0,0.00020273,2]
[380568084,1755809439290,-910.29,0.00020273,2]
[380568085,1755809439300,-480.0,0.00020273,2]
[380568088,1755809439311,-3794.13,0.00020273,2]
[380568090,1755809439322,-480.0,0.00020273,2]
[380568092,1755809439333,-480.0,0.00020273,2]
[380568093,1755809439344,-480.0,0.00020273,2]
[380568094,1755809439355,-1160.77,0.00020273,2]
[380568095,1755809439365,-2439.77,0.00020273,2]
[380568096,1755809439375,-314.46,0.00020273,2]
[380568097,1755809439385,-480.0,0.00020273,2]
[380568098,1755809439395,-480.0,0.00020273,2]
[380568099,1755809439406,-480.0,0.00020273,2]
[380568100,1755809439417,-480.0,0.00020273,2]
[380568101,1755809439428,-480.0,0.00020273,2]
[380568102,1755809439439,-480.0,0.00020273,2]
[380568103,1755809439449,-480.0,0.00020273,2]
[380568104,1755809439460,-480.0,0.00020273,2]
[380568105,1755809439474,-480.0,0.00020273,2]
[380568106,1755809439485,-480.0,0.00020273,2]
[380568109,1755809439497,-480.0,0.00020273,2]
[380568111,1755809439508,-566.38,0.00020273,2]
[380568113,1755809439520,-1315.98,0.00020273,2]
[380568115,1755809439532,-974.69,0.00020273,2]